bitfinex-derivatives/quotes_ETHF0:USTF0_20241008
["timestamp","ask_amount","ask_price","bid_price","bid_amount"]
[1728350274331,0.4111,2433.1,2432.9,0.5471663]
[1728350275623,0.41111,2433.0,2432.9,0.1360363]
[1728350276426,1.89111,2433.0,2432.9,0.1360363]
[1728350280330,1.48,2433.0,2432.7,0.8064]
[1728350280537,0.41115,2432.8,2432.7,0.8064]
[1728350280729,0.41115,2432.8,2432.7,0.3954]
[1728350280929,0.79645,2432.8,2432.7,0.3954]
[1728350281236,0.4112,2432.5,2432.4,0.3848]
[1728350281451,0.41121,2432.4,2432.3,5.0349]
[1728350281940,0.41121,2432.4,2432.3,0.8379]
[1728350282141,0.79641,2432.4,2432.3,0.8379]
[1728350283335,0.79641,2432.4,2431.9,0.096]
[1728350283336,1.41326,2432.4,2431.9,0.096]
[1728350283633,0.41128,2432.1,2431.9,0.8115]
[1728350283837,0.3998,2432.0,2431.9,0.8115]
[1728350284235,1.8798,2432.0,2431.6,3.2078]
[1728350284435,0.8165,2431.9,2431.6,4.01684]
[1728350284634,0.8165,2431.9,2431.6,3.6055]
[1728350284832,0.4052,2431.9,2431.6,3.6055]
[1728350285038,0.4052,2431.9,2431.8,0.41132]
[1728350285232,0.4052,2431.9,2431.6,3.6055]
[1728350285632,0.4052,2431.9,2431.7,0.41133]
[1728350285830,0.4052,2431.9,2431.6,3.6055]
[1728350286035,0.81651,2431.9,2431.6,0.3977]
[1728350286236,0.41132,2431.8,2431.6,0.3977]
[1728350287041,0.81651,2431.9,2431.6,0.3977]
[1728350287540,0.4052,2431.9,2431.7,0.41133]
[1728350287745,0.41126,2432.2,2431.8,0.41132]
[1728350288039,0.3918,2432.3,2432.0,0.41127]
[1728350288242,0.3918,2432.3,2432.1,0.8267]
[1728350288637,0.80502,2432.4,2432.1,0.8267]
[1728350288942,0.3938,2432.4,2432.1,1.23796]
[1728350289138,0.3938,2432.4,2432.1,0.8267]
[1728350289337,0.80502,2432.4,2432.1,1.23797]
[1728350290246,0.80502,2432.4,2432.1,0.8267]
[1728350291141,0.41123,2432.3,2432.1,0.8267]
[1728350292738,0.41125,2432.2,2432.1,0.8267]
[1728350292941,0.41124,2432.3,2432.1,0.8267]
[1728350293949,0.80502,2432.4,2432.1,1.23796]
[1728350294651,0.4246,2432.5,2432.1,1.23796]
[1728350294652,0.4246,2432.5,2432.1,0.8267]
[1728350294852,0.8358,2432.5,2432.2,0.41124]
[1728350295158,0.4246,2432.5,2432.3,0.41123]
[1728350295455,0.4246,2432.5,2432.1,0.8267]
[1728350295653,0.83581,2432.5,2432.3,0.41123]
[1728350295947,0.4099,2432.6,2432.2,3.2078]
[1728350296152,0.4099,2432.6,2432.4,0.41121]
[1728350296353,0.4099,2432.6,2432.5,0.4024]
[1728350296548,0.4099,2432.6,2432.5,0.7904]
[1728350296749,0.82108,2432.6,2432.5,0.7904]
[1728350305658,3.61897,2432.7,2432.5,0.7904]
[1728350305860,3.2078,2432.7,2432.5,1.20158]
[1728350306257,0.83445,2432.8,2432.5,2.2704]
[1728350306258,0.4233,2432.8,2432.5,2.2704]
[1728350306561,0.83224,2432.9,2432.6,0.41117]
[1728350306867,0.41115,2432.8,2432.7,0.3848]
[1728350309765,0.41118,2432.6,2432.5,0.7904]
[1728350311563,0.41121,2432.4,2432.3,0.3955]
[1728350311760,0.41121,2432.4,2432.3,0.8138]
[1728350312756,0.82551,2432.5,2432.3,0.8138]
[1728350312960,0.41121,2432.5,2432.3,1.22503]
[1728350313364,0.4112,2432.6,2432.3,2.2938]
[1728350313659,0.4112,2432.6,2432.4,0.41121]
[1728350313865,0.4112,2432.6,2432.3,2.70502]
[1728350314164,0.4112,2432.5,2432.3,2.70502]
[1728350315061,0.41121,2432.4,2432.3,0.8138]
[1728350319266,0.41121,2432.4,2432.3,1.22503]
[1728350320063,0.41121,2432.4,2432.3,0.8138]
[1728350320862,0.41121,2432.4,2432.3,1.22503]
[1728350321374,0.41121,2432.4,2432.3,0.8138]
[1728350329363,0.41121,2432.4,2432.3,1.22503]
[1728350329564,0.41121,2432.5,2432.3,1.22503]
[1728350330367,0.4112,2432.5,2432.4,5.09901]
[1728350330968,0.4112,2432.6,2432.4,5.09901]
[1728350331274,0.4112,2432.5,2432.4,4.6878]
[1728350331475,0.4112,2432.5,2432.4,3.2078]
[1728350334864,1.44223,2432.7,2432.3,0.8138]
[1728350335069,0.4128,2432.4,2432.3,0.8138]
[1728350335571,0.4128,2432.4,2432.3,1.22503]
[1728350336275,0.41121,2432.5,2432.3,1.22503]
[1728350336676,0.4128,2432.6,2432.3,1.22503]
[1728350336875,0.41121,2432.4,2432.3,1.22503]
[1728350337979,0.41121,2432.4,2432.3,0.8138]
[1728350338483,0.41121,2432.4,2432.3,1.22503]
[1728350339165,0.41121,2432.4,2432.3,0.8138]
[1728350340880,0.41121,2432.4,2432.3,1.22503]
[1728350341879,0.41121,2432.4,2432.3,0.8138]
[1728350342081,1.44077,2432.6,2432.1,3.61906]
[1728350342082,1.43921,2432.5,2432.1,3.61906]
[1728350342267,1.43921,2432.5,2432.0,0.80747]
[1728350342268,0.41126,2432.2,2432.0,0.80747]
[1728350342473,0.8189,2432.3,2432.0,0.80747]
[1728350342668,0.41127,2432.1,2432.0,0.80747]
[1728350343271,0.41126,2432.2,2432.1,0.41127]
[1728350343473,0.41127,2432.1,2432.0,0.80747]
[1728350343773,0.41126,2432.2,2432.0,0.80747]
[1728350343980,0.41126,2432.2,2432.1,0.41127]
[1728350344280,0.41127,2432.1,2432.0,1.20948]
[1728350345880,0.41127,2432.1,2432.0,0.7982]
[1728350346073,0.41132,2431.8,2431.7,0.096]
[1728350346378,0.41132,2431.8,2431.5,8.3448]
[1728350346379,0.41135,2431.6,2431.5,3.2078]
[1728350346772,0.41138,2431.4,2431.3,2.2956]
[1728350350581,0.41138,2431.4,2431.3,0.8156]
[1728350350981,0.41142,2431.2,2430.9,0.096]
[1728350351187,2.6578,2431.3,2430.8,2.3065]
[1728350351391,0.41145,2431.1,2431.0,1.48]
[1728350352291,0.8119,2431.3,2431.0,1.48]
[1728350352585,0.4163,2431.3,2431.1,1.89143]
[1728350352782,0.4163,2431.3,2431.2,0.4061]
[1728350352984,1.8963,2431.3,2430.8,3.6104]
[1728350353182,1.89147,2431.0,2430.8,0.4026]
[1728350353383,0.4163,2430.9,2430.8,0.4026]
[1728350353584,0.82777,2430.9,2430.8,0.4026]
[1728350353790,0.41147,2430.9,2430.8,4.5162]
[1728350353991,0.41147,2430.9,2430.8,0.4026]
[1728350354295,0.41147,2430.9,2430.8,4.5162]
[1728350354996,0.4163,2431.1,2430.8,4.5162]
[1728350355197,0.41145,2431.0,2430.8,0.4026]
[1728350355688,0.4163,2431.1,2430.8,1.8826]
[1728350355892,0.4163,2431.1,2430.8,2.29407]
[1728350357294,0.4114,2431.4,2431.0,1.89144]
[1728350357494,0.41141,2431.3,2431.1,0.3993]
[1728350357996,1.89141,2431.3,2431.1,0.3993]
[1728350358295,0.41142,2431.2,2431.1,0.3993]
[1728350358497,1.89141,2431.3,2431.1,0.3993]
[1728350359889,1.48,2431.3,2431.1,0.3993]
[1728350360094,1.89141,2431.3,2431.1,0.3993]
[1728350360282,1.48,2431.3,2431.1,0.3993]
[1728350360490,0.41142,2431.2,2431.1,0.3993]
[1728350362489,1.89141,2431.3,2431.1,0.3993]
[1728350362690,1.22669,2431.4,2431.1,0.81073]
[1728350362892,0.8153,2431.4,2431.2,0.41141]
[1728350363098,0.41136,2431.6,2431.3,1.89139]
[1728350363288,0.41137,2431.5,2431.2,2.28631]
[1728350363489,0.41137,2431.5,2431.3,0.4114]
[1728350363690,0.41145,2431.1,2430.8,0.50748]
[1728350363889,1.22475,2431.0,2430.7,1.19949]
[1728350364203,0.8133,2431.0,2430.7,0.788]
[1728350364401,0.41147,2430.9,2430.7,1.1995]
[1728350364698,0.41147,2430.9,2430.7,0.788]
[1728350364996,0.41147,2430.9,2430.7,1.1995]
[1728350365301,0.41147,2430.9,2430.7,0.788]
[1728350365801,0.41149,2430.8,2430.7,0.788]
[1728350365990,1.48,2430.9,2430.6,0.41151]
[1728350366196,0.41149,2430.8,2430.6,0.41151]
[1728350366699,1.89148,2430.9,2430.5,4.0252]
[1728350366891,1.48,2430.8,2430.5,3.2078]
[1728350367093,0.41154,2430.5,2430.3,5.02327]
[1728350367298,0.41154,2430.5,2430.3,0.82627]
[1728350368101,1.02878,2430.7,2430.3,0.4147]
[1728350368300,0.41152,2430.6,2430.4,0.41155]
[1728350368598,0.41152,2430.6,2430.3,0.4147]
[1728350368599,0.41155,2430.5,2430.3,0.4147]
[1728350368794,1.48,2430.5,2430.1,4.0247]
[1728350368996,0.41159,2430.2,2430.1,3.6131]
[1728350369194,0.41159,2430.2,2430.1,3.2078]
[1728350369394,4.52679,2430.2,2430.1,3.2078]
[1728350369596,5.00242819,2430.2,2430.1,3.2078]
[1728350370197,0.41164,2429.9,2429.7,0.41167]
[1728350370500,1.48,2429.9,2429.7,0.41167]
[1728350370796,0.05633819,2429.8,2429.7,0.41167]
[1728350371002,0.05633819,2429.8,2429.7,1.89167]
[1728350371294,0.05633819,2429.8,2429.4,1.44129]
[1728350371295,4.17233819,2429.8,2429.4,3.61951]
[1728350371500,1.48,2429.6,2429.5,0.41171]
[1728350371799,0.05633819,2429.6,2429.5,0.41171]
[1728350372197,0.05633819,2429.6,2429.5,4.52771]
[1728350372904,0.05633819,2429.6,2429.5,10.52771]
[1728350373104,0.4116,2430.2,2429.6,0.41169]
[1728350373400,0.4116,2430.2,2430.0,0.41162]
[1728350373601,0.4116,2430.2,2429.9,0.41163]
[1728350373803,0.4116,2430.2,2430.0,0.41162]
[1728350373999,0.4116,2430.2,2430.1,0.3991]
[1728350374401,0.4116,2430.2,2429.9,0.41163]
[1728350374795,0.4116,2430.2,2429.8,0.3991]
[1728350375191,3.61938,2430.3,2430.0,0.41161]
[1728350375404,3.61938,2430.3,2429.8,0.3991]
[1728350375405,0.4116,2430.2,2429.9,0.41162]
[1728350375706,0.4116,2430.2,2430.0,0.41161]
[1728350376005,0.4116,2430.2,2429.8,0.3991]
[1728350376213,3.21,2430.0,2429.6,0.096]
[1728350376503,0.41172,2429.4,2429.3,1.16645471]
[1728350376699,0.41172,2429.4,2429.3,1.07045471]
[1728350378201,0.41174,2429.3,2429.2,0.3991]
[1728350378709,0.41173,2429.4,2429.2,0.3991]
[1728350379112,0.41174,2429.3,2429.2,0.3991]
[1728350380509,0.79894,2429.4,2429.2,0.81085]
[1728350381404,0.41174,2429.4,2429.2,0.81085]
[1728350382697,0.3872,2429.7,2429.2,0.3991]
[1728350382902,0.41172,2429.5,2429.3,0.41173]
[1728350383704,0.795,2429.7,2429.2,0.3991]
[1728350383705,0.41173,2429.4,2429.2,0.81085]
[1728350384807,1.82421,2429.7,2429.2,0.81085]
[1728350385009,0.41172,2429.5,2429.3,0.41174]
[1728350385409,1.82421,2429.7,2429.3,0.3898]
[1728350385707,0.41172,2429.5,2429.3,0.80154]
[1728350387509,1.82421,2429.7,2429.3,0.3898]
[1728350387813,0.3872,2429.7,2429.3,3.5976]
[1728350388005,0.4117,2429.6,2429.4,0.41172]
[1728350388513,0.4117,2429.6,2429.3,4.00933]
[1728350388812,0.4117,2429.6,2429.3,3.5976]
[1728350389013,0.4117,2429.6,2429.3,4.00933]
[1728350390811,0.4117,2429.6,2429.4,0.41172]
[1728350391317,0.4117,2429.6,2429.3,4.00933]
[1728350392014,0.4117,2429.6,2429.4,0.41172]
[1728350392214,0.79888,2429.7,2429.4,0.41171]
[1728350392415,3.2078,2430.3,2429.6,6.4178]
[1728350392603,0.41159,2430.2,2430.0,3.61941]
[1728350392807,0.41158,2430.3,2430.0,3.61941]
[1728350393109,0.41158,2430.3,2430.1,0.4068]
[1728350393309,0.41158,2430.3,2430.0,3.61941]
[1728350394311,4.1152,2430.2,2430.0,3.61941]
[1728350394511,0.41158,2430.3,2430.0,3.61941]
[1728350394711,0.41158,2430.3,2430.0,3.2078]
[1728350395012,0.41158,2430.3,2430.1,0.4116]
[1728350395421,4.52678,2430.3,2430.1,0.4116]
[1728350395608,0.4234,2430.4,2430.3,0.41157]
[1728350395808,0.41153,2430.6,2430.0,4.23684]
[1728350396012,0.81773,2430.6,2430.4,0.41155]
[1728350396208,0.4062,2430.6,2430.5,0.41154]
[1728350397012,4.5206,2430.6,2430.5,0.41154]
[1728350397213,0.4062,2430.6,2430.5,0.41154]
[1728350397415,4.5206,2430.6,2430.5,0.41154]
[1728350397614,0.4062,2430.6,2430.5,0.41154]
[1728350397815,3.77645959,2430.8,2430.5,0.41154]
[1728350398215,3.77644959,2430.8,2430.5,0.41154]
[1728350398415,3.77644959,2430.8,2430.4,1.2251]
[1728350398715,0.80938,2430.9,2430.6,0.41151]
[1728350398924,0.80938,2430.9,2430.4,1.2251]
[1728350399113,0.3979,2430.9,2430.7,0.4115]
[1728350399618,0.3979,2430.9,2430.8,0.4036]
[1728350400215,0.80937,2430.9,2430.6,0.41151]
[1728350400415,0.80937,2430.9,2430.4,1.2101]
[1728350400416,3.21,2430.8,2430.4,1.2101]
[1728350400616,3.21,2430.6,2430.3,3.2078]
[1728350400818,0.41154,2430.5,2430.3,3.2078]
[1728350401020,0.80914,2430.5,2430.3,3.2078]
[1728350401722,0.80914,2430.5,2430.3,3.61937]
[1728350404416,0.80914,2430.5,2430.3,3.2078]
[1728350404621,4.23874,2430.8,2430.3,3.2078]
[1728350404923,4.23874,2430.8,2430.4,0.41154]
[1728350405122,0.41154,2430.5,2430.4,0.41154]
[1728350405817,0.41153,2430.6,2430.3,3.2078]
[1728350406015,0.41153,2430.6,2430.5,0.41154]
[1728350406216,0.41152,2430.7,2430.5,0.41152]
[1728350406424,4.23874,2430.8,2430.3,3.2078]
[1728350406722,0.41153,2430.6,2430.5,0.41153]
[1728350407418,0.41151,2430.7,2430.3,3.2078]
[1728350407618,0.4115,2430.7,2430.5,0.41153]
[1728350407826,3.21,2430.8,2430.3,3.2078]
[1728350408025,0.41151,2430.7,2430.6,0.41151]
[1728350408627,3.21,2430.8,2430.3,3.2078]
[1728350408821,3.62149,2430.8,2430.7,0.4115]
[1728350409020,0.4115,2430.7,2430.6,0.41151]
[1728350410124,0.4115,2430.7,2430.3,3.2078]
[1728350410322,0.41152,2430.6,2430.5,0.41153]
[1728350410820,0.41151,2430.7,2430.5,0.41153]
[1728350414126,3.21,2430.8,2430.3,3.2078]
[1728350414335,0.41151,2430.7,2430.6,0.41151]
[1728350415134,3.21,2430.8,2430.6,0.41151]
[1728350415432,0.80938,2430.9,2430.7,0.41149]
[1728350415828,4.92298,2430.9,2430.7,0.41149]
[1728350416023,0.41149,2430.8,2430.6,0.41151]
[1728350416326,0.80937,2430.9,2430.7,0.81809]
[1728350416727,0.41149,2430.8,2430.7,0.81809]
[1728350417127,4.52509,2430.8,2430.7,0.81809]
[1728350417535,0.3979,2430.9,2430.8,0.41149]
[1728350417739,0.41144,2431.1,2430.9,0.41146]
[1728350418031,0.41144,2431.1,2430.8,0.4224]
[1728350418032,0.4017,2431.2,2430.8,0.4224]
[1728350418236,0.41145,2431.1,2430.9,0.41146]
[1728350418932,1.45176,2431.5,2430.9,3.2078]
[1728350418933,0.4114,2431.4,2430.9,3.2078]
[1728350419135,3.21,2431.5,2431.0,0.41144]
[1728350419136,0.41142,2431.3,2431.0,0.41144]
[1728350419340,0.41142,2431.3,2431.1,0.41143]
[1728350419830,0.41142,2431.3,2431.2,0.3995]
[1728350420036,0.41139,2431.4,2431.2,0.3995]
[1728350420233,0.41139,2431.4,2431.2,0.81091]
[1728350421033,0.41139,2431.4,2431.2,0.3995]
[1728350421834,0.41139,2431.4,2431.2,0.81091]
[1728350422044,0.41139,2431.4,2431.2,0.3995]
[1728350422235,4.0092,2431.5,2431.3,0.4203]
[1728350422543,4.42058,2431.5,2431.3,0.4203]
[1728350423035,0.41138,2431.4,2431.3,0.4203]
[1728350423831,0.41138,2431.4,2431.3,0.8082]
[1728350424940,4.0092,2431.5,2431.3,0.8082]
[1728350425130,3.61917,2431.6,2431.3,0.8082]
[1728350425333,3.2078,2431.6,2431.4,0.41138]
[1728350425538,3.2078,2431.6,2431.3,0.8082]
[1728350425840,0.4223,2431.7,2431.6,0.41135]
[1728350426034,0.4223,2431.7,2431.3,0.8082]
[1728350426035,4.01161,2431.9,2431.7,0.41133]
[1728350426234,4.01161,2431.9,2431.8,0.8172]
[1728350426634,0.80161,2431.9,2431.8,0.8172]
[1728350426935,0.83357,2432.1,2431.8,1.22852]
[1728350427130,0.83357,2432.1,2431.8,0.8172]
[1728350427131,0.41129,2432.0,2431.8,0.8172]
[1728350428133,0.41129,2432.0,2431.8,1.2308]
[1728350429938,0.41129,2432.0,2431.8,1.64211]
[1728350430141,0.41129,2432.0,2431.8,1.2308]
[1728350430844,0.83358,2432.1,2431.9,0.4113]
[1728350431140,0.83358,2432.1,2431.8,1.6421]
[1728350431745,0.83358,2432.1,2431.8,1.2308]
[1728350431947,3.2078,2432.6,2431.9,3.21]
[1728350432242,0.41122,2432.4,2432.2,0.41124]
[1728350432447,0.41121,2432.5,2432.3,0.8137]
[1728350433340,1.21929,2432.6,2432.3,1.64083]
[1728350433735,0.4112,2432.5,2432.3,1.2296]
[1728350434435,1.21929,2432.6,2432.3,1.64083]
[1728350434839,0.8081,2432.6,2432.3,1.2296]
[1728350435151,0.4112,2432.5,2432.3,1.2296]
[1728350435341,0.8081,2432.6,2432.3,1.2296]
[1728350435543,1.21929,2432.6,2432.3,1.64083]
[1728350435848,0.82269,2432.6,2432.3,1.64083]
[1728350436447,0.4115,2432.6,2432.3,1.2296]
[1728350436748,0.41117,2432.7,2432.4,0.4112]
[1728350437344,0.41117,2432.7,2432.3,1.2296]
[1728350437345,0.8489,2432.8,2432.3,1.2296]
[1728350437545,0.8489,2432.8,2432.3,1.64082]
[1728350437750,0.41121,2432.4,2432.1,0.096]
[1728350438050,0.423,2432.3,2432.1,0.4212]
[1728350438346,0.41125,2432.2,2432.1,0.4212]
[1728350438747,3.6199,2432.2,2431.8,3.2078]
[1728350438943,3.21,2432.0,2431.5,3.3038]
[1728350439146,3.21,2432.0,2431.3,0.4259]
[1728350439147,3.21,2431.8,2431.3,0.4259]
[1728350439351,1.45134,2431.7,2431.3,0.4259]
[1728350439649,0.41137,2431.5,2431.3,0.8373]
[1728350439844,1.86124,2431.7,2431.3,0.4259]
[1728350440047,1.86124,2431.7,2431.3,0.8373]
[1728350440247,1.24424,2431.7,2431.4,0.41138]
[1728350440949,0.8329,2431.7,2431.5,0.41136]
[1728350441448,0.8329,2431.7,2431.3,0.4259]
[1728350441643,1.24424,2431.7,2431.4,0.41137]
[1728350441849,0.41135,2431.6,2431.3,0.83729]
[1728350442450,0.41135,2431.6,2431.3,0.4259]
[1728350442751,0.41135,2431.6,2431.4,0.41138]
[1728350443248,0.8329,2431.7,2431.4,0.41138]
[1728350443651,0.41135,2431.6,2431.4,0.41138]
[1728350443858,1.24424,2431.7,2431.4,0.41138]
[1728350448852,0.41136,2431.6,2431.4,0.41138]
[1728350449457,0.8329,2431.7,2431.4,0.41138]
[1728350449458,1.24425,2431.7,2431.4,0.41138]
[1728350449848,0.41135,2431.6,2431.4,0.41138]
[1728350450253,0.41137,2431.5,2431.3,0.8373]
[1728350450860,0.8329,2431.7,2431.3,0.8373]
[1728350451055,0.41136,2431.6,2431.3,0.8373]
[1728350451557,0.41136,2431.6,2431.4,0.41138]
[1728350451863,1.24425,2431.7,2431.4,0.41138]
[1728350452956,0.8329,2431.7,2431.5,0.41136]
[1728350453260,1.24424,2431.7,2431.5,0.41136]
[1728350453859,1.24424,2431.7,2431.4,0.41137]
[1728350454657,0.41135,2431.6,2431.3,0.4259]
[1728350454859,0.41135,2431.6,2431.3,0.83729]
[1728350455060,0.41135,2431.6,2431.4,0.41138]
[1728350456158,0.8329,2431.7,2431.3,0.4259]
[1728350456365,0.4114,2431.3,2431.2,6.839]
[1728350456660,6.4178,2431.5,2430.7,3.7153]
[1728350456865,0.783,2431.2,2430.8,0.41148]
[1728350457063,0.41145,2431.1,2430.8,0.41148]
[1728350457269,0.783,2431.2,2430.8,0.41148]
[1728350457566,0.41145,2431.1,2430.8,0.41148]
[1728350458162,0.41145,2431.0,2430.8,0.41148]
[1728350458664,0.41147,2430.9,2430.7,3.6193]
[1728350459769,0.41146,2431.0,2430.7,6.4178]
[1728350459964,0.41146,2431.0,2430.8,0.41148]
[1728350460159,0.41146,2431.0,2430.7,6.4178]
[1728350460364,0.41146,2431.0,2430.7,6.82929]
[1728350461573,0.41149,2430.8,2430.7,3.2078]
[1728350462565,0.41154,2430.5,2430.3,4.0112]
[1728350462981,0.41154,2430.6,2430.3,4.42277]
[1728350463166,0.41154,2430.5,2430.3,4.0112]
[1728350463577,0.8149,2430.7,2430.4,0.41155]
[1728350463578,1.22641,2430.7,2430.4,0.41155]
[1728350463966,1.22641,2430.7,2430.3,7.2212]
[1728350463967,0.41152,2430.6,2430.3,7.2212]
[1728350464174,0.41152,2430.6,2430.3,7.63276]
[1728350465069,0.8149,2430.7,2430.3,7.2212]
[1728350465275,1.02862,2431.1,2430.6,3.2078]
[1728350465581,0.41146,2431.0,2430.7,1.2482]
[1728350465770,0.41146,2431.0,2430.8,0.3864]
[1728350466076,0.41141,2431.3,2431.0,0.41145]
[1728350466274,0.8339,2431.4,2430.9,3.61926]
[1728350466471,0.41146,2431.0,2430.8,0.3864]
[1728350467271,0.41147,2430.9,2430.8,0.3864]
[1728350467575,0.41147,2430.9,2430.5,0.096]
[1728350467576,0.41152,2430.6,2430.5,0.096]
[1728350467776,0.41152,2430.6,2430.3,7.66307]
[1728350468271,0.4213,2430.8,2430.3,7.2515]
[1728350468478,0.41153,2430.6,2430.3,7.66306]
[1728350468776,0.41154,2430.5,2430.3,4.0415]
[1728350468967,0.82334,2430.5,2430.3,4.0415]
[1728350469163,0.82334,2430.5,2430.3,4.45307]
[1728350469371,0.4118,2430.5,2430.3,4.45307]
[1728350470375,0.41152,2430.6,2430.4,0.41155]
[1728350470573,0.41152,2430.6,2430.3,7.66306]
[1728350470967,0.41152,2430.6,2430.4,0.41154]
[1728350471168,0.4213,2430.8,2430.4,0.41154]
[1728350471477,0.41153,2430.6,2430.3,7.66306]
[1728350471671,0.41151,2430.7,2430.4,0.41155]
[1728350472064,0.4213,2430.8,2430.3,7.2515]
[1728350472271,0.41153,2430.6,2430.3,7.66306]
[1728350472562,0.3957,2430.5,2430.3,7.66306]
[1728350473062,0.3957,2430.5,2430.3,7.2515]
[1728350473265,0.3957,2430.5,2430.3,7.66306]
[1728350475578,0.41151,2430.7,2430.4,0.41155]
[1728350476073,0.8208,2430.8,2430.4,0.41155]
[1728350476378,0.41152,2430.6,2430.4,0.41155]
[1728350476576,0.41152,2430.6,2430.3,7.66306]
[1728350476872,0.8208,2430.8,2430.3,7.2515]
[1728350477076,0.4115,2430.7,2430.4,0.41154]
[1728350477278,0.4115,2430.7,2430.3,7.2515]
[1728350477677,0.4115,2430.7,2430.5,0.41154]
[1728350477984,0.4115,2430.7,2430.3,7.2515]
[1728350478178,0.4115,2430.7,2430.4,0.41154]
[1728350480181,0.4115,2430.7,2430.5,0.41153]
[1728350480371,0.4115,2430.7,2430.4,0.41154]
[1728350481775,0.41152,2430.7,2430.4,0.41154]
[1728350481974,0.4115,2430.7,2430.4,0.41154]
[1728350483174,0.4115,2430.7,2430.5,0.41153]
[1728350483872,0.4115,2430.7,2430.3,7.2515]
[1728350484072,0.41152,2430.6,2430.4,0.41155]
[1728350486081,0.41152,2430.6,2430.3,7.2515]
[1728350486280,0.41153,2430.6,2430.3,7.66306]
[1728350486680,0.41153,2430.6,2430.4,0.41155]
[1728350487280,0.41154,2430.5,2430.3,7.66306]
[1728350487481,0.41153,2430.6,2430.4,0.41155]
[1728350491290,1.2323,2430.8,2430.5,0.41152]
[1728350491490,0.41147,2430.9,2430.6,0.4168]
[1728350491686,0.4115,2430.8,2430.7,0.8496]
[1728350492189,4.5251,2430.8,2430.7,0.8496]
[1728350493291,4.1136,2430.8,2430.3,3.3038]
[1728350493583,0.41154,2430.5,2430.4,0.8178]
[1728350494497,0.41159,2430.2,2430.0,3.71541]
[1728350494794,0.41159,2430.2,2430.1,0.8178]
[1728350495187,0.4224,2430.5,2430.1,0.8178]
[1728350495391,0.41159,2430.2,2430.1,0.8178]
[1728350496388,0.41162,2430.0,2429.9,0.4175]
[1728350497293,0.8146,2430.1,2429.9,0.4175]
[1728350497488,1.22621,2430.1,2429.9,0.82914]
[1728350497996,1.22621,2430.1,2429.8,0.419]
[1728350497997,0.8146,2430.1,2429.8,0.419]
[1728350498188,0.80911,2430.1,2429.9,0.41163]
[1728350499092,0.80911,2430.1,2429.8,3.6268]
[1728350499293,0.4116,2430.2,2429.9,0.41163]
[1728350499596,0.4116,2430.2,2430.0,0.4129]
[1728350499796,0.4116,2430.2,2430.1,0.4243]
[1728350507900,0.41164,2429.9,2429.8,0.419]
[1728350508100,0.41169,2429.6,2429.5,0.4223]
[1728350508401,0.41172,2429.4,2429.3,3.2078]
[1728350508604,0.41172,2429.4,2429.3,3.6301]
[1728350509306,0.41169,2429.6,2429.3,4.04184]
[1728350509500,0.41169,2429.6,2429.4,1.48]
[1728350509695,0.4048,2429.8,2429.4,1.89172]
[1728350509896,0.4048,2429.8,2429.4,1.48]
[1728350510104,0.4048,2429.8,2429.3,0.4223]
[1728350510105,0.41172,2429.4,2429.3,0.4223]
[1728350510403,1.02919,2429.7,2429.0,6.4178]
[1728350510404,0.41174,2429.3,2429.0,6.4178]
[1728350510603,0.41174,2429.3,2429.1,0.3869]
[1728350510906,3.2078,2429.8,2429.2,3.21]
[1728350511110,0.3988,2429.7,2429.3,3.2078]
[1728350511299,0.4117,2429.6,2429.4,0.3876]
[1728350511498,0.4117,2429.6,2429.5,0.3869]
[1728350518307,0.3988,2429.7,2429.5,0.3869]
[1728350518308,0.81048,2429.7,2429.5,0.3869]
[1728350518803,0.3988,2429.7,2429.5,0.3869]
[1728350519000,0.81048,2429.7,2429.5,0.3869]
[1728350519804,0.3988,2429.7,2429.5,0.3869]
[1728350520109,0.41169,2429.6,2429.5,0.3869]
[1728350520413,0.3988,2429.7,2429.5,0.3869]
[1728350520607,0.81048,2429.7,2429.5,0.3869]
[1728350520805,0.3988,2429.7,2429.5,0.3869]
[1728350521405,0.81049,2429.7,2429.5,0.3869]
[1728350521601,0.3936,2429.9,2429.5,4.5029]
[1728350521802,0.41163,2430.0,2429.7,0.41167]
[1728350522018,0.41163,2430.0,2429.8,0.803]
[1728350522201,0.41163,2430.0,2429.9,0.4142]
[1728350522704,3.61941,2430.1,2429.9,0.4142]
[1728350522901,3.2078,2430.1,2429.9,0.4142]
[1728350523104,3.2078,2430.1,2429.9,0.82583]
[1728350524406,0.8261,2430.2,2429.9,0.82583]
[1728350524601,0.4116,2430.2,2429.9,0.82583]
[1728350525613,0.41161,2430.1,2429.9,0.82583]
[1728350525811,2.0179117,2430.4,2429.9,0.82583]
[1728350526011,0.41159,2430.2,2429.9,0.82583]
[1728350526209,0.41161,2430.1,2429.9,0.4142]
[1728350526400,0.4116,2430.2,2429.9,0.82583]
[1728350526606,2.0179117,2430.4,2429.9,0.4142]
[1728350526804,0.41161,2430.1,2429.9,0.4142]
[1728350528114,0.41161,2430.1,2429.9,0.82584]
[1728350528315,0.41161,2430.1,2429.9,0.4142]
[1728350529616,0.41161,2430.1,2429.9,0.82584]
[1728350530814,0.41161,2430.1,2429.9,0.4142]
[1728350531014,0.41161,2430.1,2429.9,0.82584]
[1728350532413,1.02893,2430.3,2429.9,0.82583]
[1728350532913,0.4116,2430.1,2429.9,0.82583]
[1728350533120,0.4116,2430.1,2429.9,4.03363]